Workbook

Sheet Лист1
B2: Инвестор | C2: Доля, % | D2: Стоимость доли без кефа, $ | E2: Стоимость доли c кефом, $ | F2: Профит, % | G2: К выплате, $
B3: ABCplay 1% $22.6 = 1,3% | C3: =D3/$D$20 -> 0.01315789474 | D3: =E3/1.13 -> 20 | E3: 22.6 | F3: =$F$20*C3 -> 14.23263158 | G3: =F3+D3 -> 34.23263158
B4: cstobro 2% $45.2 = 2,7% | C4: 0.02631578947 | D4: =E4/1.13 -> 40 | E4: 45.2 | F4: =$F$20*C4 -> 28.46526316 | G4: =F4+D4 -> 68.46526316
B5: evgenichriga 2% $45.2 = 2,7% | C5: 0.02631578947 | D5: 40 | E5: 45.2 | F5: 28.46526316 | G5: 68.46526316
B6: gorTot 2% $45.2 = 2,7% | C6: 0.02631578947 | D6: 40 | E6: 45.2 | F6: 28.46526316 | G6: 68.46526316
B7: IIcuXe9Igz 1% $22.6 = 1,3% | C7: 0.01315789474 | D7: 20 | E7: 22.6 | F7: 14.23263158 | G7: 34.23263158
B8: lawuet 1% $22.6 = 1,3% | C8: 0.01315789474 | D8: 20 | E8: 22.6 | F8: 14.23263158 | G8: 34.23263158
B9: Maks233 2% $45.2 = 2,7% | C9: 0.02631578947 | D9: 40 | E9: 45.2 | F9: 28.46526316 | G9: 68.46526316
B10: manu777512 1% $22.6 = 1,3% | C10: 0.01315789474 | D10: 20 | E10: 22.6 | F10: 14.23263158 | G10: 34.23263158
B11: Maxwell727 2% $45.2 = 2,7% | C11: 0.02631578947 | D11: 40 | E11: 45.2 | F11: 28.46526316 | G11: 68.46526316
B12: SAPHALATA 2% $45.2 = 2,7% | C12: 0.02631578947 | D12: 40 | E12: 45.2 | F12: 28.46526316 | G12: 68.46526316
B13: sistema 10% $226 = 13,3% | C13: 0.1315789474 | D13: 200 | E13: 226 | F13: 142.3263158 | G13: 342.3263158
B14: Tunaru 13% $293.8 = 17,3% | C14: 0.1710526316 | D14: 260 | E14: 293.8 | F14: 185.0242105 | G14: 445.0242105
B15: vad1k 1.5% $33.9 = 2% | C15: 0.01973684211 | D15: 30 | E15: 33.9 | F15: 21.34894737 | G15: 51.34894737
B16: vladi32 2% $45.2 = 2,7% | C16: 0.02631578947 | D16: 40 | E16: 45.2 | F16: 28.46526316 | G16: 68.46526316
B17: World_Man 0.5% $11.3 = 0,7% | C17: 0.006578947368 | D17: 10 | E17: 11.3 | F17: 7.116315789 | G17: 17.11631579
B18: Ronan 3% $67.8 = 4% | C18: 0.03947368421 | D18: 60 | E18: 67.8 | F18: 42.69789474 | G18: 102.6978947
B19: MoW3R 600$ = 35,4% | C19: 0.3947368421 | D19: 600 | E19: 600 | F19: 426.9789474 | G19: 1026.978947
D20: =SUM(D3:D19) -> 1520 | E20: =SUM(E3:E19) -> 1639.6 | F20: 1081.68 | G20: =SUM(G3:G19) -> 2601.68
B21: МТТ+МТСНГ: 189
B22: Баинов: 1521,35$
B23: Призы: 2603,03$
B24: Профит 1081,68$
B25: В таблице выплаты согласно долей. Плюс у игрока остается сумма с кефа в размере 119,6$ (1639,6-1520)
